fUSD/lending_fUSD_20260606
["ID","MTS","AMOUNT","RATE_DAILY","PERIOD"]
[424229556,1780675851000,-1103.84396095,0.000339,120]
[424229550,1780675851000,-200.72252976,0.000339,120]
[424229551,1780675851000,-245.25068369,0.000339,120]
[424229560,1780675851000,-1197.32291669,0.000339,120]
[424229553,1780675851000,-593.93823306,0.000339,120]
[424229552,1780675851000,-173.20687523,0.000339,120]
[424229557,1780675851000,-161.91126847,0.000339,120]
[424229555,1780675851000,-231.06087588,0.000339,120]
[424229561,1780675851000,-318.06797243,0.000339,120]
[424229554,1780675851000,-303.42827789,0.000339,120]
[424229562,1780675851000,-152.0,0.00033948,7]
[424229571,1780675851000,-150.0,0.000342,7]
[424229573,1780675851000,-150.32951388,0.000342,7]
[424229572,1780675851000,-150.0,0.000342,7]
[424229564,1780675851000,-923.531813,0.00034,11]
[424229567,1780675851000,-151.0,0.000341,4]
[424229568,1780675851000,-848.8,0.00034182,7]
[424229563,1780675851000,-240.34,0.00033997,120]
[424229565,1780675851000,-750.0,0.00034,2]
[424229570,1780675851000,-150.0,0.0003419,2]
[424229569,1780675851000,-179.97120455,0.00034186,2]
[424229542,1780675851000,-2269.73661167,0.00033832,2]
[424229543,1780675851000,-4767.1780726,0.00033835,2]
[424229566,1780675851000,-372.58578916,0.00034071,2]
[424229538,1780675851000,-2269.73661167,0.00033753,2]
[424229545,1780675851000,-1354.24939418,0.00033877,120]
[424229513,1780675851000,-2067.0,0.00033413,30]
[424229511,1780675851000,-395.0,0.00033413,30]
[424229512,1780675851000,-394.0,0.00033413,30]
[424229518,1780675851000,-4767.1780726,0.00033459,2]
[424229515,1780675851000,-2269.73661167,0.00033414,2]
[424229520,1780675851000,-1117.81091,0.000335,10]
[424229521,1780675851000,-2269.73661167,0.00033502,2]
[424229514,1780675851000,-749.0,0.00033413,30]
[424229523,1780675851000,-2269.73661167,0.00033531,2]
[424229522,1780675851000,-4767.1780726,0.00033509,2]
[424229525,1780675851000,-4767.1780726,0.00033558,2]
[424229524,1780675851000,-179.97120459,0.00033534,2]
[424229527,1780675851000,-2269.73661167,0.00033588,2]
[424229519,1780675851000,-2269.73661167,0.00033473,2]
[424229535,1780675851000,-265.44,0.000337,14]
[424229526,1780675851000,-2269.73661167,0.0003356,2]
[424229540,1780675851000,-4767.1780726,0.00033791,2]
[424229537,1780675851000,-4767.1780726,0.00033746,2]
[424229536,1780675851000,-2269.73661167,0.00033726,2]
[424229547,1780675851000,-1412.28688489,0.00033877,120]
[424229532,1780675851000,-2269.73661167,0.00033672,2]
[424229548,1780675851000,-1134.86830572,0.00033884,2]
[424229528,1780675851000,-4767.1780726,0.00033606,2]
[424229534,1780675851000,-4767.1780726,0.000337,2]
[424229530,1780675851000,-2269.73661167,0.00033644,2]
[424229531,1780675851000,-4767.1780726,0.00033653,2]
[424229539,1780675851000,-2269.73661167,0.00033779,2]
[424229533,1780675851000,-2269.73661167,0.00033699,2]
[424229529,1780675851000,-2269.73661167,0.00033616,2]
[424229605,1780675852000,-150.0,0.00034453,2]
[424229606,1780675852000,-150.0,0.00034453,2]
[424229603,1780675852000,-406.0,0.00034418,30]
[424229607,1780675852000,-407.0,0.00034453,2]
[424229609,1780675852000,-500.0,0.00034453,2]
[424229600,1780675852000,-394.0,0.00034413,30]
[424229608,1780675852000,-500.0,0.00034453,2]
[424229610,1780675852000,-500.0,0.00034453,2]
[424229611,1780675852000,-400.0,0.00034453,2]
[424229602,1780675852000,-749.0,0.00034413,30]
[424229616,1780675852000,-150.0,0.00034545,7]
[424229614,1780675852000,-150.0,0.00034517,7]
[424229617,1780675852000,-189.92,0.00034625,12]
[424229613,1780675852000,-400.0,0.00034453,2]
[424229615,1780675852000,-157.98,0.00034521,30]
[424229604,1780675852000,-200.0,0.00034419,2]
[424229618,1780675852000,-151.239875,0.00034629,12]
[424229620,1780675852000,-833.92535152,0.00034698,2]
[424229621,1780675852000,-1500.0,0.00034795,2]
[424229625,1780675852000,-150.0,0.00034887,2]
[424229622,1780675852000,-150.0,0.00034833,7]
[424229623,1780675852000,-152.66829888,0.00034855,7]
[424229612,1780675852000,-400.0,0.00034453,2]
[424229601,1780675852000,-2067.0,0.00034413,30]
[424229597,1780675852000,-282.0,0.00034413,30]
[424229589,1780675852000,-350.0,0.00034349,36]
[424229624,1780675852000,-311.76398317,0.0003486,2]
[424229575,1780675852000,-150.0,0.000342,7]
[424229574,1780675852000,-150.0,0.000342,7]
[424229576,1780675852000,-150.0,0.000342,7]
[424229583,1780675852000,-1048.77798409,0.00034235,7]
[424229577,1780675852000,-500.0,0.000342,2]
[424229582,1780675852000,-841.21,0.000342,2]
[424229579,1780675852000,-500.0,0.000342,2]
[424229581,1780675852000,-500.0,0.000342,2]
[424229578,1780675852000,-500.0,0.000342,2]
[424229580,1780675852000,-511.81,0.000342,2]
[424229585,1780675852000,-1000.0,0.00034247,120]
[424229586,1780675852000,-1000.0,0.00034247,120]
[424229595,1780675852000,-1472.0,0.00034413,30]
[424229594,1780675852000,-1478.0,0.00034413,30]
[424229588,1780675852000,-500.0,0.00034282,120]
[424229587,1780675852000,-150.0,0.00034247,30]
[424229596,1780675852000,-483.0,0.00034413,30]
[424229591,1780675852000,-284.0,0.00034411,30]
[424229593,1780675852000,-235.0,0.00034413,30]
[424229590,1780675852000,-1169.0,0.00034411,30]
[424229598,1780675852000,-1864.0,0.00034413,30]
[424229592,1780675852000,-585.0,0.00034413,30]
[424229599,1780675852000,-395.0,0.00034413,30]
[424229584,1780675852000,-522.48,0.00034247,7]
[424229619,1780675852000,-668.65185756,0.00034698,2]
[424229628,1780675852000,-1500.0,0.000349,7]
[424229653,1780675852000,-300.0,0.00034958,2]
[424229665,1780675852000,-300.0,0.00034958,2]
[424229655,1780675852000,-300.0,0.00034958,2]
[424229657,1780675852000,-300.0,0.00034958,2]
[424229659,1780675852000,-300.0,0.00034958,2]
[424229660,1780675852000,-300.0,0.00034958,2]
[424229658,1780675852000,-493.96494702,0.00034958,2]
[424229656,1780675852000,-300.0,0.00034958,2]
[424229663,1780675852000,-606.01943079,0.00034958,2]
[424229661,1780675852000,-300.0,0.00034958,2]
[424229664,1780675852000,-301.0077852,0.00034958,2]
[424229662,1780675852000,-300.0,0.00034958,2]
[424229668,1780675852000,-300.0,0.00034958,2]
[424229669,1780675852000,-1069.74260505,0.00034958,2]
[424229675,1780675852000,-300.36336253,0.00034958,2]
[424229676,1780675852000,-301.35684721,0.00034958,2]
[424229672,1780675852000,-300.0,0.00034958,2]
[424229674,1780675852000,-426.01801251,0.00034958,2]
[424229673,1780675852000,-302.57479324,0.00034958,2]
[424229670,1780675852000,-535.40148659,0.00034958,2]
[424229671,1780675852000,-727.95528898,0.00034958,2]
[424229626,1780675852000,-150.0,0.00034891,7]
[424229666,1780675852000,-300.0,0.00034958,2]
[424229654,1780675852000,-300.0,0.00034958,2]
[424229667,1780675852000,-3206.51250246,0.00034958,2]
[424229651,1780675852000,-300.0,0.00034958,2]
[424229627,1780675852000,-376.0,0.00034892,2]
[424229648,1780675852000,-533.09399937,0.00034958,2]
[424229630,1780675852000,-213.04472748,0.0003493,2]
[424229639,1780675852000,-485.39259751,0.00034958,2]
[424229640,1780675852000,-300.0,0.00034958,2]
[424229629,1780675852000,-3193.4073,0.00034908,2]
[424229632,1780675852000,-1363.0,0.00034932,2]
[424229638,1780675852000,-300.0,0.00034958,2]
[424229637,1780675852000,-300.0,0.00034958,2]
[424229634,1780675852000,-250.0,0.00034944,7]
[424229633,1780675852000,-407.0,0.00034932,2]
[424229631,1780675852000,-1366.0,0.00034932,2]
[424229645,1780675852000,-300.0,0.00034958,2]
[424229636,1780675852000,-405.31,0.00034944,120]
[424229641,1780675852000,-300.0,0.00034958,2]
[424229647,1780675852000,-1097.74908549,0.00034958,2]
[424229642,1780675852000,-300.0,0.00034958,2]
[424229644,1780675852000,-300.0,0.00034958,2]
[424229643,1780675852000,-300.0,0.00034958,2]
[424229650,1780675852000,-300.0,0.00034958,2]
[424229646,1780675852000,-483.4988537,0.00034958,2]
[424229649,1780675852000,-300.0,0.00034958,2]
[424229635,1780675852000,-772.0,0.00034944,3]
[424229652,1780675852000,-300.0,0.00034958,2]
[424229717,1780675853000,-300.0,0.00034958,2]
[424229718,1780675853000,-560.37662927,0.00034958,2]
[424229710,1780675853000,-453.07819494,0.00034958,2]
[424229721,1780675853000,-300.0,0.00034958,2]
[424229719,1780675853000,-300.0,0.00034958,2]
[424229716,1780675853000,-300.0,0.00034958,2]
[424229708,1780675853000,-582.33663571,0.00034958,2]
[424229712,1780675853000,-300.0,0.00034958,2]
[424229715,1780675853000,-485.39259751,0.00034958,2]
[424229711,1780675853000,-300.0,0.00034958,2]
[424229720,1780675853000,-300.0,0.00034958,2]
[424229709,1780675853000,-300.0,0.00034958,2]
[424229722,1780675853000,-365.32657613,0.00034958,2]
[424229732,1780675853000,-301.6768001,0.00034958,2]
[424229724,1780675853000,-300.0,0.00034958,2]
[424229723,1780675853000,-1097.74908549,0.00034958,2]
[424229727,1780675853000,-300.0,0.00034958,2]
[424229725,1780675853000,-300.0,0.00034958,2]
[424229729,1780675853000,-300.0,0.00034958,2]
[424229728,1780675853000,-503.38643042,0.00034958,2]
[424229733,1780675853000,-493.96494702,0.00034958,2]
[424229730,1780675853000,-480.96177116,0.00034958,2]
[424229736,1780675853000,-300.0,0.00034958,2]
[424229737,1780675853000,-300.0,0.00034958,2]
[424229738,1780675853000,-606.01943079,0.00034958,2]
[424229739,1780675853000,-350.28666301,0.00034958,2]
[424229707,1780675853000,-300.0,0.00034958,2]
[424229726,1780675853000,-484.11868817,0.00034958,2]
[424229705,1780675853000,-300.0,0.00034958,2]
[424229678,1780675853000,-300.0,0.00034958,2]
[424229706,1780675853000,-512.60852236,0.00034958,2]
[424229677,1780675853000,-300.0,0.00034958,2]
[424229679,1780675853000,-300.0,0.00034958,2]
[424229689,1780675853000,-300.0,0.00034958,2]
[424229687,1780675853000,-528.25355298,0.00034958,2]
[424229688,1780675853000,-300.0,0.00034958,2]
[424229681,1780675853000,-300.0,0.00034958,2]
[424229682,1780675853000,-300.0,0.00034958,2]
[424229683,1780675853000,-300.0,0.00034958,2]
[424229685,1780675853000,-300.0,0.00034958,2]
[424229680,1780675853000,-300.0,0.00034958,2]
[424229684,1780675853000,-823.4770006,0.00034958,2]
[424229686,1780675853000,-344.84564358,0.00034958,2]
[424229694,1780675853000,-1801.88721781,0.00034958,2]
[424229703,1780675853000,-595.52105001,0.00034958,2]
[424229691,1780675853000,-300.0,0.00034958,2]
[424229693,1780675853000,-951.46597211,0.00034958,2]
[424229692,1780675853000,-866.62523856,0.00034958,2]
[424229695,1780675853000,-300.0,0.00034958,2]
[424229696,1780675853000,-310.41093008,0.00034958,2]
[424229697,1780675853000,-300.0,0.00034958,2]
[424229700,1780675853000,-339.91684526,0.00034958,2]
[424229702,1780675853000,-300.0,0.00034958,2]
[424229701,1780675853000,-300.0,0.00034958,2]
[424229698,1780675853000,-300.0,0.00034958,2]
[424229699,1780675853000,-1343.13549955,0.00034958,2]
[424229704,1780675853000,-300.0,0.00034958,2]
[424229713,1780675853000,-300.0,0.00034958,2]
[424229714,1780675853000,-300.0,0.00034958,2]
[424229690,1780675853000,-300.0,0.00034958,2]
[424229734,1780675853000,-300.0,0.00034958,2]
[424229735,1780675853000,-300.0,0.00034958,2]
[424229740,1780675853000,-300.0,0.00034958,2]
[424229777,1780675853000,-300.0,0.00034958,2]
[424229773,1780675853000,-552.49852976,0.00034958,2]
[424229769,1780675853000,-310.41093008,0.00034958,2]
[424229772,1780675853000,-483.32678539,0.00034958,2]
[424229774,1780675853000,-595.52105001,0.00034958,2]
[424229780,1780675853000,-582.33663571,0.00034958,2]
[424229788,1780675853000,-300.0,0.00034958,2]
[424229789,1780675853000,-300.0,0.00034958,2]
[424229779,1780675853000,-300.0,0.00034958,2]
[424229790,1780675853000,-300.0,0.00034958,2]
[424229791,1780675853000,-300.0,0.00034958,2]
[424229781,1780675853000,-300.0,0.00034958,2]
[424229782,1780675853000,-453.07819494,0.00034958,2]
[424229770,1780675853000,-410.64394478,0.00034958,2]
[424229787,1780675853000,-485.39259751,0.00034958,2]
[424229786,1780675853000,-300.0,0.00034958,2]
[424229783,1780675853000,-300.0,0.00034958,2]
[424229792,1780675853000,-1097.74908549,0.00034958,2]
[424229793,1780675853000,-300.0,0.00034958,2]
[424229794,1780675853000,-300.0,0.00034958,2]
[424229799,1780675853000,-300.0,0.00034958,2]
[424229795,1780675853000,-300.0,0.00034958,2]
[424229796,1780675853000,-506.34490546,0.00034958,2]
[424229797,1780675853000,-300.0,0.00034958,2]
[424229801,1780675853000,-300.0,0.00034958,2]
[424229798,1780675853000,-493.96494702,0.00034958,2]
[424229800,1780675853000,-300.0,0.00034958,2]
[424229731,1780675853000,-300.0,0.00034958,2]
[424229785,1780675853000,-300.0,0.00034958,2]
[424229771,1780675853000,-300.0,0.00034958,2]
[424229784,1780675853000,-300.0,0.00034958,2]
[424229775,1780675853000,-300.0,0.00034958,2]
[424229778,1780675853000,-512.60852236,0.00034958,2]
[424229743,1780675853000,-1069.74260505,0.00034958,2]
[424229751,1780675853000,-300.0,0.00034958,2]
[424229746,1780675853000,-300.0,0.00034958,2]
[424229752,1780675853000,-300.0,0.00034958,2]
[424229750,1780675853000,-300.0,0.00034958,2]
[424229742,1780675853000,-300.0,0.00034958,2]
[424229745,1780675853000,-727.95528898,0.00034958,2]
[424229744,1780675853000,-535.40148659,0.00034958,2]
[424229748,1780675853000,-300.36336253,0.00034958,2]
[424229747,1780675853000,-302.57479324,0.00034958,2]
[424229749,1780675853000,-301.35684721,0.00034958,2]
[424229754,1780675853000,-300.0,0.00034958,2]
[424229764,1780675853000,-866.62523856,0.00034958,2]
[424229763,1780675853000,-300.0,0.00034958,2]
[424229741,1780675853000,-3206.51250246,0.00034958,2]
[424229760,1780675853000,-528.25355298,0.00034958,2]
[424229765,1780675853000,-951.46597211,0.00034958,2]
[424229756,1780675853000,-300.0,0.00034958,2]
[424229758,1780675853000,-301.35975064,0.00034958,2]
[424229755,1780675853000,-300.0,0.00034958,2]
[424229761,1780675853000,-467.78595318,0.00034958,2]
[424229759,1780675853000,-344.84564358,0.00034958,2]
[424229757,1780675853000,-823.4770006,0.00034958,2]
[424229762,1780675853000,-300.0,0.00034958,2]
[424229753,1780675853000,-300.0,0.00034958,2]
[424229766,1780675853000,-1801.88721781,0.00034958,2]
[424229768,1780675853000,-301.39745687,0.00034958,2]
[424229767,1780675853000,-301.38070181,0.00034958,2]
[424229776,1780675853000,-1343.13549955,0.00034958,2]
[424229835,1780675854000,-300.0,0.00034958,2]
[424229837,1780675854000,-512.60852236,0.00034958,2]
[424229843,1780675854000,-300.0,0.00034958,2]
[424229847,1780675854000,-300.0,0.00034958,2]
[424229845,1780675854000,-300.0,0.00034958,2]
[424229834,1780675854000,-300.0,0.00034958,2]
[424229840,1780675854000,-300.0,0.00034958,2]
[424229833,1780675854000,-595.52105001,0.00034958,2]
[424229831,1780675854000,-300.0,0.00034958,2]
[424229844,1780675854000,-485.39259751,0.00034958,2]
[424229842,1780675854000,-300.0,0.00034958,2]
[424229838,1780675854000,-582.33663571,0.00034958,2]
[424229854,1780675854000,-300.0,0.00034958,2]
[424229836,1780675854000,-300.0,0.00034958,2]
[424229848,1780675854000,-300.0,0.00034958,2]
[424229853,1780675854000,-300.0,0.00034958,2]
[424229855,1780675854000,-493.96494702,0.00034958,2]
[424229852,1780675854000,-300.0,0.00034958,2]
[424229849,1780675854000,-300.0,0.00034958,2]
[424229850,1780675854000,-1097.74908549,0.00034958,2]
[424229856,1780675854000,-300.0,0.00034958,2]
[424229851,1780675854000,-300.0,0.00034958,2]
[424229858,1780675854000,-300.0,0.00034958,2]
[424229865,1780675854000,-727.95528898,0.00034958,2]
[424229866,1780675854000,-300.0,0.00034958,2]
[424229868,1780675854000,-300.36336253,0.00034958,2]
[424229869,1780675854000,-301.35684721,0.00034958,2]
[424229857,1780675854000,-300.0,0.00034958,2]
[424229867,1780675854000,-302.57479324,0.00034958,2]
[424229846,1780675854000,-300.0,0.00034958,2]
[424229839,1780675854000,-453.07819494,0.00034958,2]
[424229804,1780675854000,-300.0,0.00034958,2]
[424229832,1780675854000,-1343.13549955,0.00034958,2]
[424229860,1780675854000,-300.0,0.00034958,2]
[424229802,1780675854000,-300.0,0.00034958,2]
[424229803,1780675854000,-606.01943079,0.00034958,2]
[424229806,1780675854000,-300.0,0.00034958,2]
[424229816,1780675854000,-300.0,0.00034958,2]
[424229815,1780675854000,-300.0,0.00034958,2]
[424229817,1780675854000,-300.0,0.00034958,2]
[424229808,1780675854000,-535.40148659,0.00034958,2]
[424229807,1780675854000,-1069.74260505,0.00034958,2]
[424229805,1780675854000,-3206.51250246,0.00034958,2]
[424229814,1780675854000,-525.36649581,0.00034958,2]
[424229809,1780675854000,-727.95528898,0.00034958,2]
[424229812,1780675854000,-300.36336253,0.00034958,2]
[424229811,1780675854000,-302.57479324,0.00034958,2]
[424229810,1780675854000,-300.0,0.00034958,2]
[424229813,1780675854000,-301.35684721,0.00034958,2]
[424229818,1780675854000,-300.0,0.00034958,2]
[424229820,1780675854000,-300.0,0.00034958,2]
[424229819,1780675854000,-300.0,0.00034958,2]
[424229821,1780675854000,-823.4770006,0.00034958,2]
[424229822,1780675854000,-344.84564358,0.00034958,2]
[424229825,1780675854000,-300.0,0.00034958,2]
[424229829,1780675854000,-1801.88721781,0.00034958,2]
[424229830,1780675854000,-310.41093008,0.00034958,2]
[424229824,1780675854000,-599.23664749,0.00034958,2]
[424229823,1780675854000,-528.25355298,0.00034958,2]
[424229826,1780675854000,-300.0,0.00034958,2]
[424229828,1780675854000,-951.46597211,0.00034958,2]
[424229827,1780675854000,-866.62523856,0.00034958,2]
[424229841,1780675854000,-300.0,0.00034958,2]
[424229862,1780675854000,-300.0,0.00034958,2]
[424229863,1780675854000,-1069.74260505,0.00034958,2]
[424229861,1780675854000,-3206.51250246,0.00034958,2]
[424229906,1780675854000,-300.0,0.00034958,2]
[424229903,1780675854000,-300.0,0.00034958,2]
[424229902,1780675854000,-485.39259751,0.00034958,2]
[424229901,1780675854000,-300.0,0.00034958,2]
[424229904,1780675854000,-300.0,0.00034958,2]
[424229908,1780675854000,-365.279987,0.00034967,60]
[424229907,1780675854000,-1097.74908549,0.00034958,2]
[424229905,1780675854000,-300.0,0.00034958,2]
[424229920,1780675854000,-161.91126847,0.00035,120]
[424229909,1780675854000,-277.2016561,0.00034967,60]
[424229910,1780675854000,-945.2495545,0.00034967,60]
[424229919,1780675854000,-1103.84396095,0.00035,120]
[424229916,1780675854000,-593.93823306,0.00035,120]
[424229915,1780675854000,-245.25068369,0.00035,120]
[424229921,1780675854000,-1665.62857171,0.00035,120]
[424229914,1780675854000,-895.9483565,0.00034967,60]
[424229912,1780675854000,-890.4066404,0.00034967,60]
[424229918,1780675854000,-231.06087588,0.00035,120]
[424229911,1780675854000,-696.4284059,0.00034967,60]
[424229913,1780675854000,-177.1292135,0.00034967,60]
[424229917,1780675854000,-303.42827789,0.00035,120]
[424229923,1780675854000,-646.169767,0.00035,13]
[424229922,1780675854000,-1538.05721072,0.00035,120]
[424229930,1780675854000,-200.0,0.00035,120]
[424229927,1780675854000,-329.636939,0.00035,13]
[424229929,1780675854000,-200.0,0.00035,10]
[424229925,1780675854000,-1197.32291669,0.00035,120]
[424229926,1780675854000,-1350.09046,0.00035,120]
[424229928,1780675854000,-2000.0,0.00035,7]
[424229900,1780675854000,-469.90659361,0.00034958,2]
[424229898,1780675854000,-300.0,0.00034958,2]
[424229924,1780675854000,-265.44,0.00035,14]
[424229896,1780675854000,-453.07819494,0.00034958,2]
[424229897,1780675854000,-300.0,0.00034958,2]
[424229864,1780675854000,-535.40148659,0.00034958,2]
[424229871,1780675854000,-300.0,0.00034958,2]
[424229870,1780675854000,-300.0,0.00034958,2]
[424229876,1780675854000,-301.35975064,0.00034958,2]
[424229873,1780675854000,-300.0,0.00034958,2]
[424229872,1780675854000,-521.47502584,0.00034958,2]
[424229874,1780675854000,-300.0,0.00034958,2]
[424229880,1780675854000,-300.0,0.00034958,2]
[424229877,1780675854000,-344.84564358,0.00034958,2]
[424229879,1780675854000,-300.0,0.00034958,2]
[424229875,1780675854000,-823.4770006,0.00034958,2]
[424229881,1780675854000,-866.62523856,0.00034958,2]
[424229878,1780675854000,-528.25355298,0.00034958,2]
[424229859,1780675854000,-606.01943079,0.00034958,2]
[424229890,1780675854000,-595.52105001,0.00034958,2]
[424229883,1780675854000,-1801.88721781,0.00034958,2]
[424229899,1780675854000,-300.0,0.00034958,2]
[424229895,1780675854000,-582.33663571,0.00034958,2]
[424229887,1780675854000,-300.0,0.00034958,2]
[424229885,1780675854000,-382.32719749,0.00034958,2]
[424229892,1780675854000,-597.78126658,0.00034958,2]
[424229894,1780675854000,-300.0,0.00034958,2]
[424229884,1780675854000,-409.50450496,0.00034958,2]
[424229882,1780675854000,-951.46597211,0.00034958,2]
[424229886,1780675854000,-310.41093008,0.00034958,2]
[424229893,1780675854000,-512.60852236,0.00034958,2]
[424229889,1780675854000,-300.0,0.00034958,2]
[424229891,1780675854000,-300.0,0.00034958,2]
[424229888,1780675854000,-1343.13549955,0.00034958,2]
[424229970,1780675855000,-500.0,0.00035069,10]
[424229974,1780675855000,-500.0,0.00035069,10]
[424229969,1780675855000,-150.0,0.00035069,10]
[424229965,1780675855000,-180.0,0.00035069,10]
[424229968,1780675855000,-500.0,0.00035069,10]
[424229963,1780675855000,-500.0,0.00035069,10]
[424229966,1780675855000,-150.0,0.00035069,10]
[424229964,1780675855000,-150.0,0.00035069,10]
[424229967,1780675855000,-150.0,0.00035069,10]
[424229972,1780675855000,-500.0,0.00035069,10]
[424229973,1780675855000,-150.0,0.00035069,10]
[424229977,1780675855000,-150.0,0.00035069,10]
[424229982,1780675855000,-500.0,0.00035069,10]
[424229976,1780675855000,-500.0,0.00035069,10]
[424229978,1780675855000,-330.46506309,0.00035069,10]
[424229986,1780675855000,-1302.0,0.00035069,10]
[424229984,1780675855000,-500.0,0.00035069,10]
[424229985,1780675855000,-500.0,0.00035069,10]
[424229971,1780675855000,-150.0,0.00035069,10]
[424229983,1780675855000,-1302.0,0.00035069,10]
[424229979,1780675855000,-156.57780002,0.00035069,10]
[424229980,1780675855000,-1302.0,0.00035069,10]
[424229981,1780675855000,-1302.0,0.00035069,10]
[424229988,1780675855000,-500.0,0.00035069,10]
[424229996,1780675855000,-500.0,0.00035069,2]
[424229987,1780675855000,-500.0,0.00035069,2]
[424229997,1780675855000,-500.0,0.00035069,10]
[424229975,1780675855000,-150.0,0.00035069,10]
[424229961,1780675855000,-150.0,0.00035069,10]
[424229955,1780675855000,-150.0,0.00035069,14]
[424229958,1780675855000,-500.0,0.00035069,10]
[424229998,1780675855000,-1302.0,0.00035069,10]
[424229933,1780675855000,-432.95,0.00035,2]
[424229934,1780675855000,-432.95,0.00035,7]
[424229935,1780675855000,-432.95,0.00035,3]
[424229931,1780675855000,-318.06797243,0.00035,120]
[424229932,1780675855000,-247.27711029,0.00035,60]
[424229947,1780675855000,-500.0,0.00035069,10]
[424229936,1780675855000,-1396.25819,0.00035,120]
[424229937,1780675855000,-164.89,0.0003503,30]
[424229944,1780675855000,-500.0,0.00035069,10]
[424229941,1780675855000,-500.0,0.00035069,10]
[424229938,1780675855000,-3193.4073,0.00035033,2]
[424229942,1780675855000,-500.0,0.00035069,10]
[424229962,1780675855000,-500.0,0.00035069,10]
[424229940,1780675855000,-500.0,0.00035069,10]
[424229939,1780675855000,-1592.0,0.00035039,11]
[424229943,1780675855000,-500.0,0.00035069,10]
[424229945,1780675855000,-500.0,0.00035069,10]
[424229949,1780675855000,-500.0,0.00035069,10]
[424229950,1780675855000,-500.0,0.00035069,10]
[424229951,1780675855000,-500.0,0.00035069,10]
[424229952,1780675855000,-412.34598771,0.00035069,10]
[424229954,1780675855000,-500.0,0.00035069,10]
[424229953,1780675855000,-500.0,0.00035069,10]
[424229957,1780675855000,-500.0,0.00035069,10]
[424229956,1780675855000,-500.0,0.00035069,10]
[424229960,1780675855000,-240.0,0.00035069,10]
[424229959,1780675855000,-500.0,0.00035069,10]
[424229946,1780675855000,-500.0,0.00035069,10]
[424229989,1780675855000,-500.0,0.00035069,10]
[424229948,1780675855000,-500.0,0.00035069,10]
[424229990,1780675855000,-1302.0,0.00035069,10]
[424230028,1780675855000,-500.0,0.00035069,10]
[424230035,1780675855000,-500.0,0.00035069,10]
[424230034,1780675855000,-1302.0,0.00035069,10]
[424230032,1780675855000,-500.0,0.00035069,10]
[424230033,1780675855000,-500.0,0.00035069,2]
[424230037,1780675855000,-500.0,0.00035069,10]
[424230036,1780675855000,-500.0,0.00035069,10]
[424230029,1780675855000,-500.0,0.00035069,2]
[424230031,1780675855000,-500.0,0.00035069,10]
[424230030,1780675855000,-500.0,0.00035069,10]
[424230038,1780675855000,-500.0,0.00035069,2]
[424230039,1780675855000,-1302.0,0.00035069,10]
[424230040,1780675855000,-500.0,0.00035069,10]
[424230026,1780675855000,-500.0,0.00035069,2]
[424230046,1780675855000,-508.70425749,0.00035069,10]
[424230049,1780675855000,-500.0,0.00035069,10]
[424230048,1780675855000,-500.0,0.00035069,2]
[424230041,1780675855000,-500.0,0.00035069,10]
[424230047,1780675855000,-500.0,0.00035069,10]
[424230045,1780675855000,-1302.0,0.00035069,10]
[424230050,1780675855000,-150.0,0.00035069,2]
[424230043,1780675855000,-500.0,0.00035069,2]
[424230044,1780675855000,-500.0,0.00035069,10]
[424230051,1780675855000,-500.0,0.00035069,10]
[424230053,1780675855000,-500.0,0.00035069,10]